bitfinex-derivatives/quotes_ETHF0:USTF0_20250102
["timestamp","ask_amount","ask_price","bid_price","bid_amount"]
[1735783671748,0.4401,3390.9,3390.8,8.87648]
[1735783673651,0.4401,3390.9,3390.8,9.33245205]
[1735783674961,0.4401,3390.9,3390.8,8.13445205]
[1735783675163,0.4401,3390.9,3390.8,9.33245205]
[1735783676160,0.4401,3390.9,3390.8,8.87648]
[1735783677754,0.4401,3390.9,3390.8,9.33244392]
[1735783678861,0.4401,3390.9,3390.8,8.87648]
[1735783682258,0.4602,3391.1,3390.8,8.581]
[1735783682459,0.4602,3391.1,3391.0,0.29547]
[1735783683065,3.2078,3391.5,3390.8,13.581]
[1735783683361,0.72593,3391.4,3391.3,0.29544]
[1735783683760,0.4305,3391.4,3390.9,0.4324]
[1735783683955,0.29544,3391.3,3391.1,0.29546]
[1735783684158,0.29544,3391.3,3390.8,13.581]
[1735783684159,0.72594,3391.4,3391.2,0.29545]
[1735783684763,0.4305,3391.4,3390.8,13.581]
[1735783684962,0.29546,3391.2,3391.0,0.29546]
[1735783685261,0.29545,3391.3,3391.1,0.29546]
[1735783685463,0.4305,3391.4,3390.8,13.581]
[1735783685771,0.29545,3391.2,3390.8,13.581]
[1735783686066,0.29545,3391.2,3391.1,0.29546]
[1735783686460,0.29545,3391.2,3391.0,0.29546]
[1735783686961,0.29545,3391.3,3391.1,0.29546]
[1735783687959,0.72594,3391.4,3391.3,0.29544]
[1735783688269,0.4305,3391.4,3391.3,0.29544]
[1735783688469,0.4305,3391.4,3390.8,13.581]
[1735783688667,0.72594,3391.4,3391.2,0.29544]
[1735783688863,0.4305,3391.4,3391.3,0.29544]
[1735783689769,0.4232,3391.5,3391.4,0.29543]
[1735783691559,0.29544,3391.4,3391.3,0.29544]
[1735783693360,0.4232,3391.5,3391.1,1.197]
[1735783693561,0.29545,3391.3,3391.2,0.29545]
[1735783693767,0.29545,3391.3,3391.1,1.197]
[1735783693768,3.631,3391.5,3391.1,1.197]
[1735783693958,0.75245,3391.2,3391.1,1.197]
[1735783694165,0.75245,3391.2,3391.1,1.49246]
[1735783695073,0.75245,3391.2,3391.1,0.29546]
[1735783696869,0.29546,3391.1,3391.0,3.2078]
[1735783697067,0.29546,3391.1,3391.0,3.50327]
[1735783697267,0.29546,3391.1,3391.0,3.2078]
[1735783697667,0.29546,3391.1,3391.0,3.50327]
[1735783697869,0.457,3391.2,3390.8,5.0]
[1735783698167,0.29548,3390.9,3390.8,5.0]
[1735783708780,0.75718,3390.9,3390.8,5.0]
[1735783711980,0.75718,3390.9,3390.8,5.29549]
[1735783712581,0.75718,3390.9,3390.8,5.0]
[1735783713888,9.93945695,3390.9,3390.8,5.0]
[1735783716481,15.35685885,3390.9,3390.8,2.8988]
[1735783716683,0.29556,3389.9,3389.8,0.29557]
[1735783717688,0.29556,3389.9,3389.5,0.8809]
[1735783717689,0.29556,3390.0,3389.9,0.29556]
[1735783717990,3.2078,3390.3,3390.0,0.29555]
[1735783717991,0.29555,3390.2,3390.0,0.29555]
[1735783718285,0.29555,3390.2,3389.6,0.2961]
[1735783718286,0.29555,3390.2,3390.1,0.29555]
[1735783718486,0.29555,3390.1,3389.9,0.29556]
[1735783718687,0.29555,3390.1,3390.0,0.29556]
[1735783720085,8.39513872,3390.1,3390.0,0.29556]
[1735783720989,0.29556,3390.0,3389.9,0.29556]
[1735783722391,8.09958872,3390.1,3389.6,0.2961]
[1735783722592,0.29556,3390.0,3389.9,0.29556]
[1735783723292,8.09958872,3390.1,3389.6,0.2961]
[1735783723588,0.29557,3389.9,3389.8,0.29557]
[1735783723794,8.09958872,3390.1,3389.6,0.2961]
[1735783723984,0.29558,3389.7,3389.6,0.2961]
[1735783724188,0.29559,3389.6,3389.5,0.4365]
[1735783724590,0.29559,3389.6,3389.5,0.7321]
[1735783725297,0.29559,3389.6,3389.5,0.4365]
[1735783727498,2.68058033,3389.6,3389.5,0.4365]
[1735783727698,0.29564,3389.0,3388.9,4.8344]
[1735783728002,0.29563,3389.1,3389.0,0.4509]
[1735783728299,0.29563,3389.1,3389.0,0.74654]
[1735783728801,0.4465,3389.5,3389.0,0.74654]
[1735783729000,0.29563,3389.2,3389.0,0.74654]
[1735783729499,0.29563,3389.1,3389.0,0.74654]
[1735783730098,3.2078,3389.7,3389.0,0.4509]
[1735783730402,0.29561,3389.4,3389.3,0.29562]
[1735783730593,3.2078,3389.7,3389.1,0.29563]
[1735783730796,0.29563,3389.1,3389.0,0.4509]
[1735783731493,0.29563,3389.2,3389.1,0.29563]
[1735783731800,0.2956,3389.6,3389.4,0.2956]
[1735783731996,0.2956,3389.5,3389.4,0.2956]
[1735783732506,3.2078,3389.7,3389.2,1.198]
[1735783732902,0.2956,3389.5,3389.4,0.2956]
[1735783733098,3.2078,3389.7,3389.2,1.198]
[1735783733306,0.2956,3389.6,3389.5,0.29559]
[1735783733810,3.2078,3389.7,3389.3,0.4289]
[1735783734104,0.2956,3389.5,3389.4,0.2956]
[1735783735509,0.2956,3389.6,3389.4,0.29561]
[1735783735697,0.2956,3389.5,3389.4,0.29561]
[1735783736204,2.83149033,3389.8,3389.5,0.29559]
[1735783736407,0.29559,3389.6,3389.5,0.29559]
[1735783736601,0.29558,3389.7,3389.6,0.29559]
[1735783736798,0.29558,3389.8,3389.7,0.29558]
[1735783737004,0.29559,3389.7,3389.6,0.29559]
[1735783737912,0.29557,3389.9,3389.8,0.29557]
[1735783738206,0.29555,3390.1,3390.0,0.29555]
[1735783738402,0.29556,3390.1,3390.0,0.29556]
[1735783738602,0.29556,3390.1,3390.0,0.4297]
[1735783741212,0.29554,3390.2,3390.1,0.29554]
[1735783741412,0.29555,3390.1,3390.0,0.72525]
[1735783742007,0.29555,3390.1,3390.0,0.4297]
[1735783746315,0.29557,3389.8,3389.7,1.197]
[1735783746511,0.41640079,3390.1,3389.7,6.78979033]
[1735783746710,3.82376149,3390.1,3390.0,2.68055033]
[1735783746913,1.72166149,3390.1,3390.0,7.68055033]
[1735783747210,8.09958872,3390.3,3390.2,0.29554]
[1735783747513,8.09958872,3390.3,3390.2,3.50334]
[1735783748109,0.29548,3390.9,3390.7,0.29549]
[1735783748320,0.29548,3390.9,3390.8,1.197]
[1735783748612,0.8981,3391.0,3390.8,1.49249]
[1735783748815,0.8981,3391.0,3390.8,1.197]
[1735783749014,0.29548,3390.9,3390.8,1.197]
[1735783750118,0.29548,3390.9,3390.8,1.49248]
[1735783750308,0.8981,3391.0,3390.9,0.29548]
[1735783750509,0.8981,3391.0,3390.8,1.197]
[1735783750510,0.2151,3391.4,3391.3,0.29544]
[1735783750719,0.51053,3391.4,3391.3,0.29544]
[1735783751113,2.60009033,3391.4,3390.8,1.197]
[1735783751318,0.29549,3390.8,3390.7,0.29549]
[1735783751518,2.38499033,3391.2,3390.8,0.29549]
[1735783751714,0.29547,3391.0,3390.6,4.4048]
[1735783751919,0.29547,3391.0,3390.8,0.29548]
[1735783753921,2.38499033,3391.5,3390.6,4.4048]
[1735783754121,0.74916,3391.2,3391.0,0.29546]
[1735783754622,0.74916,3391.2,3390.6,4.4048]
[1735783754623,0.4537,3391.2,3390.6,4.4048]
[1735783754820,0.29546,3391.1,3390.6,4.4048]
[1735783755121,0.29546,3391.1,3391.0,0.29547]
[1735783755722,0.29546,3391.1,3390.9,0.29547]
[1735783755924,0.29546,3391.1,3390.6,4.4048]
[1735783755925,0.29546,3391.1,3391.0,0.29547]
[1735783756323,0.4537,3391.2,3390.6,4.4048]
[1735783756524,0.29547,3391.0,3390.7,0.29549]
[1735783756826,0.29546,3391.1,3391.0,0.29547]
[1735783757326,0.29547,3391.0,3390.9,0.29548]
[1735783757722,0.29547,3391.0,3390.6,1.197]
[1735783758026,0.4336,3390.9,3390.8,0.29548]
[1735783759025,0.4336,3390.9,3390.6,1.197]
[1735783759320,0.4537,3391.2,3391.1,0.29546]
[1735783762033,0.74915,3391.2,3390.6,4.4048]
[1735783762327,0.74915,3391.2,3391.0,0.29546]
[1735783762526,0.74915,3391.2,3390.6,4.4048]
[1735783762726,0.4337,3391.1,3390.6,4.4048]
[1735783763125,0.4337,3391.1,3391.0,0.29546]
[1735783766737,0.72916,3391.1,3391.0,0.29546]
[1735783766928,0.4337,3391.1,3391.0,0.29546]
[1735783767631,0.4337,3391.1,3390.6,4.4048]
[1735783767829,0.4337,3391.1,3390.7,0.29549]
[1735783768022,0.29548,3390.9,3390.7,0.29549]
[1735783768537,0.29548,3390.9,3390.3,1.197]
[1735783768538,3.2078,3390.8,3390.3,1.197]
[1735783768830,3.62414248,3390.8,3390.3,1.197]
[1735783769035,3.62414248,3390.8,3390.2,3.2078]
[1735783769036,0.29553,3390.3,3390.2,3.2078]
[1735783769237,2.38499033,3390.6,3390.0,0.29555]
[1735783769238,0.29551,3390.5,3390.0,0.29555]
[1735783769527,0.9231,3390.2,3390.1,0.29555]
[1735783770931,1.21864,3390.2,3390.0,0.29555]
[1735783771331,0.4561,3390.1,3390.0,0.29555]
[1735783772534,0.4561,3390.1,3389.7,0.29558]
[1735783772535,0.29557,3389.9,3389.7,0.29558]
[1735783772835,0.29558,3389.8,3389.6,0.29559]
[1735783773433,2.68055033,3390.0,3389.8,0.29557]
[1735783773635,0.29556,3390.0,3389.8,0.29557]
[1735783774138,0.29556,3390.0,3389.4,1.197]
[1735783774439,0.29556,3390.0,3389.8,0.29557]
[1735783776237,0.4561,3390.1,3390.0,0.29556]
[1735783776438,0.75165,3390.1,3390.0,0.29556]
[1735783776628,0.29556,3390.0,3389.9,0.29556]
[1735783779240,0.4561,3390.1,3389.9,0.29556]
[1735783779542,0.4561,3390.1,3389.4,1.4157]
[1735783779743,0.29556,3390.0,3389.9,0.29556]
[1735783780543,0.4561,3390.1,3389.4,1.4157]
[1735783780742,0.29556,3390.0,3389.9,0.29556]
[1735783782341,0.29556,3390.0,3389.5,0.2956]
[1735783782635,0.29556,3390.0,3389.4,1.4157]
[1735783783343,0.29556,3390.0,3389.9,0.29556]
[1735783783840,0.4561,3390.1,3389.4,1.4157]
[1735783784046,0.4561,3390.1,3389.4,1.197]
[1735783784338,0.29558,3389.7,3389.5,0.2956]
[1735783784546,0.4413,3389.6,3389.5,0.2956]
[1735783784742,0.8776,3389.6,3389.5,0.2956]
[1735783785541,1.17319,3389.6,3389.5,0.2956]
[1735783787143,1.17319,3389.6,3389.4,1.197]
[1735783787448,0.4565,3389.5,3389.4,0.29561]
[1735783787649,0.4565,3389.5,3389.4,1.49261]
[1735783793947,3.2078,3390.0,3389.9,0.29556]
[1735783794153,0.8945,3390.3,3390.2,0.29554]
[1735783794349,3.6696,3390.5,3390.4,0.29552]
[1735783794551,0.76079,3390.8,3390.3,3.50333]
[1735783794749,0.76079,3390.8,3390.3,3.2078]
[1735783795052,0.76079,3390.8,3390.6,0.29549]
[1735783796554,0.76079,3390.8,3390.7,0.29549]
[1735783799350,0.4653,3390.8,3390.7,0.29549]
[1735783799753,0.891,3390.9,3390.3,3.2078]
[1735783799950,0.891,3390.9,3390.8,0.29549]
[1735783801252,0.2955,3390.7,3390.5,0.29551]
[1735783801453,1.3185,3390.9,3390.6,0.2955]
[1735783801759,0.29549,3390.8,3390.6,0.2955]
[1735783802653,0.29551,3390.6,3390.4,0.29552]
[1735783803257,0.2955,3390.7,3390.5,0.29551]
[1735783804164,2.38499033,3390.8,3390.3,1.197]
[1735783804467,0.29551,3390.6,3390.4,0.29551]
[1735783804965,2.38499033,3390.5,3389.9,3.2078]
[1735783805263,0.29552,3390.4,3390.2,0.29554]
[1735783805564,0.8946,3390.3,3390.2,0.29554]
[1735783807966,3.2078,3390.6,3390.0,1.197]
[1735783808268,1.13759553,3391.8,3391.1,0.29546]
[1735783808269,4.79885,3391.2,3391.1,0.29546]
[1735783808469,0.29546,3391.1,3391.0,0.29547]
[1735783808766,4.79885,3391.2,3391.0,0.29547]
[1735783809362,4.79885,3391.2,3390.7,1.197]
[1735783809363,4.5034,3391.2,3391.1,0.29546]
[1735783812677,4.075,3391.2,3391.1,0.29546]
[1735783813174,0.4585,3391.6,3390.8,2.60359033]
[1735783813374,0.8935,3391.6,3391.5,0.29542]
[1735783819575,3.2078,3391.8,3391.4,3.58199033]
[1735783819779,3.2078,3391.8,3391.7,0.29541]
[1735783823179,3.50321,3391.8,3391.6,0.29541]
[1735783823374,0.4272,3391.7,3391.6,0.29541]
[1735783823780,0.4272,3391.7,3391.5,0.29542]
[1735783823781,0.72261,3391.7,3391.5,0.29542]
[1735783823981,0.89,3391.6,3391.5,0.29542]
[1735783824681,0.89,3391.6,3391.5,1.49142]
[1735783826881,3.2078,3391.8,3391.7,0.29541]
[1735783827079,3.2078,3392.2,3392.1,0.29537]
[1735783827785,0.9304,3392.4,3391.8,0.7385]
[1735783828090,0.9304,3392.4,3392.3,0.29536]
[1735783828288,0.29536,3392.3,3391.8,0.2954]
[1735783828481,0.29536,3392.3,3392.2,0.29536]
[1735783828690,1.22575,3392.4,3392.2,0.29536]
[1735783829387,0.29536,3392.3,3392.2,0.29536]
[1735783829983,0.9304,3392.4,3391.7,44.0078]
[1735783830184,1.22575,3392.4,3392.3,0.29536]
[1735783830991,0.9304,3392.4,3392.3,0.29536]
[1735783831488,1.22575,3392.4,3392.3,0.29536]
[1735783832390,0.29536,3392.3,3392.2,0.29536]
[1735783832588,0.9304,3392.4,3392.3,0.29536]
[1735783833888,0.4562,3392.6,3392.5,0.29534]
[1735783834089,0.4562,3392.6,3392.5,3.50314]
[1735783836386,9.53126229,3393.5,3393.3,0.29527]
[1735783836699,11.30481383,3393.4,3393.3,0.29527]
[1735783838191,3.2078,3394.1,3393.9,0.29522]
[1735783838494,0.4398,3394.0,3393.9,0.29522]
[1735783838790,0.4398,3394.0,3393.9,1.49122]
[1735783839494,0.4398,3394.0,3393.9,1.196]
[1735783839786,0.4398,3394.0,3393.9,1.49122]
[1735783841084,0.4398,3394.0,3393.9,1.196]
[1735783841586,0.4398,3394.0,3393.9,1.49122]
[1735783841982,0.73501,3394.0,3393.9,1.196]
[1735783842385,0.4398,3394.0,3393.7,3.2078]
[1735783842593,0.29524,3393.7,3393.5,0.29525]
[1735783842786,0.4398,3394.0,3393.4,0.29525]
[1735783842787,0.73104,3393.6,3393.4,0.29525]
[1735783843092,0.4358,3393.6,3393.4,0.29525]
[1735783843284,0.4358,3393.6,3393.5,0.29525]
[1735783845692,0.8613,3393.6,3393.5,0.29525]
[1735783848202,0.8613,3393.6,3393.3,1.196]
[1735783848395,0.8613,3393.6,3393.5,0.29525]
[1735783848898,3.2078,3393.7,3393.3,3.58099033]
[1735783849201,0.29522,3393.9,3393.6,0.29524]
[1735783849202,0.893,3393.8,3393.6,0.29524]
[1735783850294,0.893,3393.8,3393.3,3.58099033]
[1735783850496,0.893,3393.8,3393.3,1.196]
[1735783850997,0.29528,3393.2,3392.9,3.5031]
[1735783851193,1.65519,3393.1,3392.9,3.2078]
[1735783851499,1.3599,3393.1,3392.9,3.5031]
[1735783852102,1.3599,3393.1,3392.9,3.2078]
[1735783852305,1.65519,3393.1,3392.9,3.5031]
[1735783852603,1.3599,3393.1,3393.0,0.29529]
[1735783852901,1.65519,3393.1,3392.9,3.5031]
[1735783853101,1.3599,3393.1,3392.9,3.2078]
[1735783853307,1.3599,3393.1,3393.0,0.29529]
[1735783855500,1.3599,3393.1,3392.9,1.196]
[1735783855501,1.65519,3393.1,3392.9,1.4913]
[1735783856501,0.29529,3393.0,3392.9,1.196]
[1735783857301,1.3599,3393.1,3392.7,1.49132]
[1735783857709,0.29531,3392.9,3392.7,1.49132]
[1735783858309,0.29531,3392.9,3392.8,0.29531]
[1735783859006,1.3599,3393.1,3392.8,0.29531]
[1735783859007,0.2953,3393.0,3392.8,0.29531]
[1735783859707,1.3599,3393.1,3392.7,1.196]
[1735783859905,1.3599,3393.1,3393.0,0.29529]
[1735783861409,1.3599,3393.1,3392.9,0.2953]
[1735783861709,1.3599,3393.1,3392.7,1.196]
[1735783861710,1.65519,3393.1,3393.0,0.29529]
[1735783861906,0.2953,3393.0,3392.9,0.2953]
[1735783862106,1.65519,3393.1,3393.0,0.29529]
[1735783862306,6.33091033,3393.6,3392.8,0.73829]
[1735783862307,3.2078,3393.6,3392.8,0.73829]
[1735783862509,0.29526,3393.4,3393.3,0.29526]
[1735783863612,0.29526,3393.4,3393.2,0.29527]
[1735783863801,1.314,3393.5,3392.7,3.58099033]
[1735783864006,0.29527,3393.4,3393.3,0.29526]
[1735783864604,0.29528,3393.2,3393.1,0.29528]
[1735783864909,3.50308,3393.2,3393.1,1.49028]
[1735783865405,3.50308,3393.2,3393.1,1.195]
[1735783865702,3.50308,3393.2,3393.1,1.19222846]
[1735783866007,3.50308,3393.2,3392.5,3.2078]
[1735783866008,0.29532,3392.7,3392.6,1.195]
[1735783866211,0.29532,3392.7,3392.6,1.49033]
[1735783866409,0.29532,3392.7,3392.6,0.29533]
[1735783866609,1.298,3392.7,3392.1,3.6338]
[1735783866913,0.29535,3392.4,3392.3,0.29535]
[1735783867112,1.298,3392.7,3392.1,3.6338]
[1735783867312,0.29536,3392.2,3392.1,3.92917]
[1735783867512,3.68299033,3392.7,3392.1,5.12417]
[1735783867713,0.29536,3392.3,3392.1,5.12417]
[1735783868013,0.29535,3392.4,3392.2,0.29536]
[1735783868310,0.29536,3392.3,3392.2,1.49136]
[1735783868511,0.29536,3392.3,3392.2,1.196]
[1735783869408,0.29536,3392.3,3392.2,1.49136]
[1735783869914,3.68299033,3392.7,3391.7,0.2954]
[1735783869915,0.29536,3392.2,3391.7,0.2954]
[1735783870109,3.2078,3392.0,3391.5,1.196]
[1735783870315,0.29542,3391.6,3391.5,1.196]
[1735783874520,3.2078,3392.0,3391.4,0.29543]
[1735783874713,0.29542,3391.5,3391.4,1.49143]
[1735783876018,2.38499033,3391.8,3391.2,3.2078]
[1735783876320,1.18764,3391.4,3391.3,1.196]
[1735783876515,0.29544,3391.3,3391.2,3.2078]
[1735783876716,0.29544,3391.3,3390.9,7.67447]
[1735783876717,0.4623,3391.3,3391.0,0.29546]
[1735783876922,0.29549,3390.8,3390.6,3.5033]
[1735783877117,0.29549,3390.8,3390.7,1.196]
[1735783878620,0.29545,3391.2,3390.7,1.196]
[1735783878817,0.4623,3391.3,3390.7,1.196]
[1735783879219,0.4623,3391.3,3390.8,0.29549]
[1735783879220,0.29547,3391.0,3390.8,0.29549]
[1735783879420,0.4623,3391.3,3390.7,1.196]
[1735783879620,0.29547,3391.0,3390.7,1.196]
[1735783879819,0.29547,3391.0,3390.8,0.29548]
[1735783881226,0.4623,3391.3,3390.7,1.196]
[1735783881425,0.4382,3391.4,3391.3,0.29544]
[1735783882724,0.4487,3391.6,3391.5,0.29542]
[1735783882920,3.50317,3392.2,3392.1,0.29537]
[1735783883126,3.50317,3392.2,3392.0,0.29537]
[1735783883315,3.50317,3392.2,3391.5,1.196]
[1735783883316,3.50317,3392.2,3392.1,0.29537]
[1735783883926,3.2078,3392.2,3391.5,3.58099033]
[1735783884222,0.29537,3392.1,3392.0,0.29538]
[1735783884721,3.2078,3392.2,3392.0,0.29538]
[1735783884928,3.50317,3392.2,3392.0,0.29538]
[1735783885121,3.50317,3392.2,3391.5,3.58099033]
[1735783885324,3.2078,3392.2,3392.1,0.29537]
[1735783885523,0.29538,3392.1,3391.5,3.58099033]
[1735783885725,0.29538,3392.1,3391.6,0.29542]
[1735783885924,0.29538,3392.1,3391.9,0.29538]
[1735783886331,0.29538,3392.0,3391.8,0.29539]
[1735783886628,0.29538,3392.1,3391.9,0.29539]
[1735783887723,0.29538,3392.0,3391.8,0.29539]
[1735783887929,0.29539,3391.9,3391.8,0.29539]
[1735783888129,0.29539,3391.9,3391.8,1.49139]
[1735783888329,0.29539,3392.0,3391.8,1.49139]
[1735783888531,2.38499033,3392.0,3391.3,0.4264]
[1735783888730,3.2078,3391.8,3391.3,1.196]
[1735783888932,0.29543,3391.5,3391.3,1.49144]
[1735783890226,3.2078,3391.8,3391.3,1.196]
[1735783890428,0.29542,3391.6,3391.4,0.29543]
[1735783891536,0.4403,3391.5,3391.4,0.29543]
[1735783891928,3.2078,3391.8,3391.3,1.196]
[1735783892237,3.2078,3392.2,3391.5,0.73857]
[1735783892438,3.2078,3392.2,3392.1,0.29537]
[1735783892630,3.2078,3392.2,3392.1,1.49137]
[1735783892827,1.15354,3392.5,3392.3,0.29535]
[1735783893636,0.8582,3392.5,3392.1,1.196]
[1735783893843,0.8582,3392.5,3392.4,0.29535]
[1735783894035,1.15354,3392.5,3392.3,0.29535]
[1735783894438,1.15354,3392.5,3392.4,0.29535]
[1735783894736,0.8582,3392.5,3392.1,1.196]
[1735783895035,0.29535,3392.4,3392.1,1.196]
[1735783895236,1.15355,3392.5,3392.3,0.29536]
[1735783895538,0.29535,3392.4,3392.1,1.196]
[1735783895838,0.29535,3392.4,3392.3,0.29536]
[1735783897533,0.29535,3392.4,3392.2,0.29536]
[1735783897734,0.29535,3392.4,3392.3,0.29536]
[1735783900034,0.29535,3392.4,3392.2,0.29536]
[1735783900236,0.29535,3392.4,3392.3,0.29536]
[1735783900438,0.8582,3392.5,3392.1,1.196]
[1735783900637,0.29535,3392.4,3392.3,0.29535]
[1735783900839,0.8582,3392.5,3391.8,3.2078]
[1735783901137,0.8582,3392.5,3392.1,0.29537]
[1735783901339,0.29536,3392.3,3392.2,0.29536]
[1735783902345,0.29535,3392.4,3392.3,0.29535]
[1735783902532,0.29536,3392.3,3392.2,0.29536]
[1735783902835,0.29536,3392.2,3392.1,0.29537]
[1735783904843,0.29536,3392.3,3392.2,0.29536]
[1735783906647,0.29537,3392.2,3392.1,0.29537]
[1735783906943,0.73017,3392.2,3392.1,0.29537]
[1735783907144,0.73017,3392.2,3392.0,1.196]
[1735783907145,0.29538,3392.1,3392.0,0.29538]
[1735783908541,0.4348,3392.2,3391.8,1.196]
[1735783908748,0.29537,3392.1,3392.0,0.29537]
[1735783909943,0.4348,3392.2,3391.9,1.196]
[1735783910139,0.73017,3392.2,3392.1,0.29537]
[1735783911739,0.29538,3392.1,3392.0,0.29538]
[1735783912249,0.29538,3392.0,3391.9,1.49138]
[1735783912546,0.74388,3392.0,3391.9,1.49138]
[1735783912751,0.4485,3392.0,3391.9,1.49138]
[1735783913547,0.74388,3392.0,3391.9,1.196]
[1735783922053,0.29539,3391.9,3391.8,0.29539]
[1735783922247,0.74799,3391.9,3391.8,0.29539]
[1735783923450,0.74799,3391.9,3391.4,1.49043]
[1735783923451,0.2954,3391.8,3391.4,1.49043]
[1735783923645,0.29543,3391.5,3391.4,1.49043]
[1735783924455,0.87009466,3391.9,3391.4,1.195]
[1735783924654,0.74799,3391.9,3391.8,0.2954]
[1735783925557,0.4526,3391.9,3391.8,0.2954]
[1735783926654,3.50314,3392.5,3392.4,0.29535]
[1735783926958,4.82684301,3392.5,3392.4,0.29535]
[1735783927149,4.40934,3392.5,3392.4,0.29535]
[1735783928050,4.114,3392.5,3392.4,0.29535]
[1735783928249,3.2078,3392.5,3392.4,0.29535]
[1735783928655,0.2953,3393.0,3392.8,0.29531]
[1735783928856,0.2953,3393.0,3392.2,0.4543]
[1735783929056,0.2953,3393.0,3392.9,0.2953]
[1735783929655,3.50309,3393.1,3392.9,0.2953]
[1735783929856,0.2953,3393.0,3392.9,0.2953]
[1735783930556,3.50309,3393.1,3393.0,0.29529]
[1735783930958,0.2953,3393.0,3392.8,1.49031]
[1735783931761,3.2078,3393.1,3392.8,1.49031]
[1735783932059,2.68029033,3392.9,3392.8,1.195]
[1735783934855,2.38499033,3392.9,3392.8,1.195]
[1735783935159,0.2953,3392.9,3392.8,1.49031]
[1735783935460,0.2953,3392.9,3392.8,1.195]
[1735783935662,0.2953,3392.9,3392.8,1.49031]
[1735783935860,0.2953,3392.9,3392.8,1.195]
[1735783936059,2.68029033,3392.9,3392.8,1.195]
[1735783936757,3.2078,3393.1,3392.8,1.195]
[1735783936956,3.50309,3393.1,3393.0,0.29529]
[1735783937459,3.50309,3393.1,3392.8,1.195]
[1735783937460,0.2953,3393.0,3392.8,1.49031]
[1735783938759,3.2078,3393.1,3392.8,1.195]
[1735783938959,0.2953,3392.9,3392.8,1.195]
[1735783939459,0.2953,3392.9,3392.8,1.49031]
[1735783940260,0.2953,3393.0,3392.9,0.2953]
[1735783940457,0.2953,3392.9,3392.8,1.195]
[1735783940660,0.29531,3392.8,3392.6,1.195]
[1735783940855,0.29532,3392.7,3392.6,1.195]
[1735783941063,0.4542,3392.7,3392.6,1.49033]
[1735783942062,0.74952,3392.7,3392.6,1.195]
[1735783942262,0.74952,3392.7,3392.6,1.49033]
[1735783942564,0.74952,3392.7,3392.6,1.195]
[1735783943063,0.74952,3392.7,3392.6,1.49033]
[1735783943364,0.4542,3392.7,3392.4,4.4028]
[1735783943666,0.891,3392.6,3392.4,4.4028]
[1735783943858,0.29534,3392.5,3392.4,4.4028]
[1735783944458,0.29534,3392.5,3392.4,3.50315]
[1735783947162,0.29534,3392.5,3392.4,3.2078]
[1735783947364,0.29536,3392.3,3392.2,0.29536]
[1735783947563,0.29536,3392.3,3392.2,1.49036]
[1735783947866,0.29538,3392.1,3392.0,0.29538]
[1735783948068,0.29538,3392.1,3392.0,1.49038]
[1735783948558,0.29538,3392.1,3392.0,0.29538]
[1735783948758,2.38499033,3392.3,3391.8,1.4904]
[1735783948759,0.29539,3391.9,3391.8,1.4904]
[1735783949370,0.75069,3391.9,3391.8,1.4904]
[1735783949961,0.75069,3391.9,3391.8,0.2954]
[1735783950266,0.4553,3391.9,3391.8,0.2954]
[1735783950668,0.75069,3391.9,3391.8,0.2954]
[1735783950967,0.4553,3391.9,3391.8,0.2954]
[1735783952964,0.75069,3391.9,3391.8,0.2954]
[1735783953168,0.2954,3391.8,3391.7,1.4904]
[1735783953872,0.4553,3391.9,3391.7,1.195]
[1735783954063,0.4553,3391.9,3391.8,0.2954]
[1735783955567,0.75069,3391.9,3391.8,0.2954]
[1735783955768,0.4553,3391.9,3391.8,0.2954]
[1735783960863,3.2078,3392.3,3391.7,1.195]
[1735783961066,3.50316,3392.3,3392.2,0.29536]
[1735783963971,3.2078,3392.3,3391.7,1.195]
[1735783964474,0.29537,3392.2,3392.1,0.29537]
[1735783967478,3.50316,3392.3,3392.2,0.29536]
[1735783967875,0.29537,3392.2,3392.1,0.29537]
[1735783968175,0.29537,3392.2,3391.7,1.195]
[1735783968176,3.50316,3392.3,3392.2,0.29536]
[1735783969370,3.50316,3392.3,3391.7,1.195]
[1735783969371,3.2078,3392.3,3391.7,1.195]
[1735783969573,0.29537,3392.2,3392.1,0.29537]
[1735783971177,3.2078,3392.3,3392.0,0.29538]
[1735783971178,0.29538,3392.1,3392.0,0.29538]
[1735783971875,0.41733569,3392.2,3392.1,0.29537]
[1735783972078,3.50316,3392.3,3392.2,0.29536]
[1735783974079,3.50316,3392.3,3391.7,1.195]
[1735783974080,3.2078,3392.3,3391.7,1.195]
[1735783974280,0.29538,3392.1,3392.0,0.29538]
[1735783975484,0.2954,3391.9,3391.8,0.2954]
[1735783976477,1.3134,3392.0,3391.5,0.8883]
[1735783976681,0.2954,3391.8,3391.7,0.2954]
[1735783976883,1.3134,3392.0,3391.7,0.29541]
[1735783977087,0.29541,3391.8,3391.7,0.29541]
[1735783977482,0.29541,3391.7,3391.6,1.49041]
[1735783979086,0.29541,3391.7,3391.6,1.195]
[1735783979389,0.29541,3391.7,3391.6,1.49042]
[1735783980587,0.29541,3391.7,3391.6,0.29542]
[1735783981391,0.29542,3391.5,3391.4,1.49043]
[1735783981693,0.4178636,3391.8,3391.4,1.195]
[1735783981993,0.29541,3391.7,3391.6,0.29541]
[1735783982195,1.34142443,3391.7,3391.6,0.29541]
[1735783983492,1.04601443,3391.7,3391.6,0.29541]